bitfinex/quotes_BTCUSD_20260127
["timestamp","ask_amount","ask_price","bid_price","bid_amount"]
[1769473229415,0.11262309,88437.0,88430.0,0.00046621]
[1769473229594,0.11262309,88436.0,88430.0,0.00046621]
[1769473229803,0.03797271,88440.0,88430.0,0.00046621]
[1769473229989,0.11262804,88439.0,88430.0,0.00046621]
[1769473230228,0.11262804,88438.0,88430.0,0.00046621]
[1769473230432,0.11262804,88437.0,88430.0,0.00046621]
[1769473230607,0.11262804,88436.0,88430.0,0.00046621]
[1769473230940,0.03797271,88440.0,88430.0,0.00046621]
[1769473231090,0.11262718,88439.0,88430.0,0.00046621]
[1769473231316,0.05653343,88444.0,88430.0,0.00046621]
[1769473231317,0.03423847,88451.0,88431.0,0.69888637]
[1769473231500,0.02293278,88451.0,88440.0,0.37752302]
[1769473231705,0.01130531,88454.0,88440.0,0.37752302]
[1769473231929,0.01130531,88454.0,88441.0,0.0402514]
[1769473232453,0.01130543,88453.0,88441.0,0.0402514]
[1769473232807,0.01130531,88454.0,88441.0,0.0402514]
[1769473233029,0.01130543,88453.0,88441.0,0.0402514]
[1769473233860,0.0001464,88455.0,88442.0,0.69888637]
[1769473234067,0.0001464,88455.0,88443.0,0.02499097]
[1769473234247,0.01130531,88454.0,88443.0,0.02499097]
[1769473234432,0.01130556,88452.0,88432.0,0.02499097]
[1769473234638,0.01130556,88452.0,88430.0,0.39544649]
[1769473234639,0.01130569,88451.0,88434.0,0.02499097]
[1769473234889,0.01130556,88452.0,88435.0,0.69888637]
[1769473235186,0.01130569,88451.0,88435.0,0.71242462]
[1769473235955,0.01130569,88451.0,88435.0,0.69888637]
[1769473236287,0.01130543,88453.0,88440.0,0.37752302]
[1769473236450,0.01145158,88455.0,88441.0,0.69240168]
[1769473236652,0.0001464,88455.0,88441.0,0.69240168]
[1769473238382,0.0001464,88455.0,88440.0,0.37752302]
[1769473238383,0.0001464,88455.0,88442.0,0.69240168]
[1769473240319,0.0001464,88455.0,88445.0,0.40250236]
[1769473240525,0.0001464,88455.0,88446.0,0.66742234]
[1769473241353,0.0001464,88455.0,88446.0,0.69240168]
[1769473244877,0.01774199,88459.0,88446.0,0.71708535]
[1769473245124,0.05652096,88463.0,88447.0,0.02497934]
[1769473245285,0.01130441,88461.0,88447.0,0.02497934]
[1769473246305,0.01130428,88462.0,88447.0,0.02497934]
[1769473246516,0.01130441,88461.0,88447.0,0.11160278]
[1769473246687,0.01130441,88461.0,88448.0,0.02497934]
[1769473247242,0.01130454,88460.0,88448.0,0.02497934]
[1769473247473,0.01130441,88461.0,88448.0,0.02497934]
[1769473247677,0.01130428,88462.0,88448.0,0.02497934]
[1769473247678,0.01130454,88460.0,88448.0,0.02497934]
[1769473247881,0.0678262,88462.0,88448.0,0.08515991]
[1769473248211,0.0678262,88462.0,88448.0,0.02497934]
[1769473248725,0.01130441,88461.0,88448.0,0.02497934]
[1769473249247,0.01130428,88462.0,88448.0,0.02497934]
[1769473250082,0.01130441,88461.0,88448.0,0.02497934]
[1769473251673,0.01130416,88463.0,88450.0,0.02289821]
[1769473251876,0.01130416,88463.0,88451.0,0.09354571]
[1769473252526,0.44549399,88465.0,88451.0,0.02289821]
[1769473252527,0.38897413,88465.0,88451.0,0.02289821]
[1769473252753,0.0004,88468.0,88452.0,0.68357676]
[1769473252916,0.0004,88468.0,88450.0,0.37752302]
[1769473252917,0.0004,88468.0,88456.0,0.68357676]
[1769473253118,0.0004,88468.0,88460.0,0.68357676]
[1769473253320,0.0004,88468.0,88461.0,0.02289821]
[1769473254207,0.00052115,88468.0,88461.0,0.02289821]
[1769473261546,0.00052115,88468.0,88454.0,0.17396]
[1769473261686,0.00052115,88468.0,88455.0,0.70647497]
[1769473262097,0.01130441,88461.0,88443.0,0.68357676]
[1769473262302,0.01130441,88461.0,88444.0,0.17392]
[1769473262529,0.70141858,88464.0,88445.0,0.68357676]
[1769473262751,0.01130416,88463.0,88445.0,0.70647497]
[1769473263193,0.70141858,88464.0,88445.0,0.68357676]
[1769473263324,0.70141858,88464.0,88446.0,0.70647497]
[1769473263325,0.46214261,88464.0,88446.0,0.70647497]
[1769473263710,0.01130416,88463.0,88446.0,0.70647497]
[1769473264281,0.01130441,88461.0,88446.0,0.70647497]
[1769473264721,0.01130454,88460.0,88446.0,0.70647497]
[1769473264919,0.01130428,88462.0,88446.0,0.70647497]
[1769473265121,0.01130441,88461.0,88446.0,0.70647497]
[1769473265550,0.01130428,88462.0,88446.0,0.70647497]
[1769473265867,0.01130441,88461.0,88446.0,0.70647497]
[1769473266225,0.01130441,88461.0,88447.0,0.17392]
[1769473266439,0.01130428,88462.0,88447.0,0.17392]
[1769473267419,0.06926137,88462.0,88447.0,0.17392]
[1769473267709,0.01130428,88462.0,88447.0,0.17392]
[1769473268178,0.22659307,88468.0,88433.0,0.70662137]
[1769473268179,0.01130505,88456.0,88433.0,0.70662137]
[1769473268387,0.03449607,88452.0,88435.0,0.17392]
[1769473268611,0.02319051,88451.0,88435.0,0.17392]
[1769473270201,0.02338671,88451.0,88435.0,0.17392]
[1769473271020,0.0001962,88451.0,88440.0,0.37752302]
[1769473273771,0.0001962,88451.0,88440.0,0.37744432]
[1769473278869,0.01272432,88451.0,88440.0,0.37744432]
[1769473279104,0.0001962,88451.0,88440.0,0.37744432]
[1769473279314,0.01150189,88451.0,88440.0,0.37744432]
[1769473279512,0.01130582,88450.0,88440.0,0.37744432]
[1769473279929,0.01150189,88451.0,88440.0,0.37744432]
[1769473280538,0.01150189,88451.0,88429.0,0.04528]
[1769473280539,0.01130671,88443.0,88422.0,0.66325468]
[1769473280744,0.03485498,88449.0,88443.0,0.01]
[1769473280982,0.01130607,88448.0,88443.0,0.01]
[1769473281158,0.01130607,88448.0,88432.0,0.68788044]
[1769473281159,0.0113062,88447.0,88432.0,0.68788044]
[1769473281360,0.01150227,88448.0,88432.0,0.68788044]
[1769473281579,0.0001962,88448.0,88432.0,0.68788044]
[1769473282226,0.0001962,88448.0,88433.0,0.02462576]
[1769473282552,0.0001962,88448.0,88434.0,0.02462576]
[1769473283183,0.01150227,88448.0,88434.0,0.02462576]
[1769473283394,0.01130646,88445.0,88434.0,0.02462576]
[1769473283911,0.01130658,88444.0,88434.0,0.02462576]
[1769473284146,0.01130646,88445.0,88434.0,0.02462576]
[1769473284350,0.0113062,88447.0,88434.0,0.02462576]
[1769473284525,0.05652975,88449.0,88434.0,0.02477276]
[1769473284685,0.0113062,88447.0,88434.0,0.02477276]
[1769473284888,0.01130607,88448.0,88434.0,0.02477276]
[1769473285319,0.01130595,88449.0,88434.0,0.02477276]
[1769473285516,0.01130607,88448.0,88434.0,0.02477276]
[1769473285896,0.01130595,88449.0,88434.0,0.02477276]
[1769473286922,0.06783574,88449.0,88434.0,0.02477276]
[1769473287131,0.01130646,88445.0,88434.0,0.000147]
[1769473287250,0.01130658,88444.0,88434.0,0.000147]
[1769473287869,0.01130646,88445.0,88434.0,0.000147]
[1769473288068,0.01130658,88444.0,88434.0,0.000147]
[1769473288871,0.01130658,88444.0,88430.0,0.37744432]
[1769473288872,0.01130671,88443.0,88426.0,0.000147]
[1769473289079,0.01130786,88434.0,88426.0,0.000147]
[1769473289698,0.01130786,88434.0,88413.0,0.17396]
[1769473289699,0.01130825,88431.0,88423.0,0.0001614]
[1769473289914,0.01130825,88431.0,88411.0,0.69050349]
[1769473289915,0.0113085,88429.0,88411.0,0.66325468]
[1769473290116,0.01130825,88431.0,88412.0,0.02724881]
[1769473290322,0.13515,88456.0,88412.0,0.02724881]
[1769473290323,0.01130786,88434.0,88412.0,0.02771502]
[1769473290524,0.01130799,88433.0,88414.0,0.02724881]
[1769473290690,0.0565405,88433.0,88414.0,0.02724881]
[1769473290880,0.01130825,88431.0,88414.0,0.02724881]
[1769473291497,0.06785046,88430.0,88414.0,0.02724881]
[1769473291698,0.01130837,88430.0,88414.0,0.02724881]
[1769473291904,0.01130863,88428.0,88414.0,0.02724881]
[1769473292057,0.0113085,88429.0,88414.0,0.02724881]
[1769473292257,0.01130837,88430.0,88414.0,0.02724881]
[1769473292464,0.01130825,88431.0,88414.0,0.02724881]
[1769473292887,0.01130837,88430.0,88414.0,0.02724881]
[1769473293548,0.06784658,88435.0,88420.0,0.37744432]
[1769473293549,0.01130786,88434.0,88420.0,0.37744432]
[1769473293756,0.01130774,88435.0,88420.0,0.40469313]
[1769473294486,0.01130786,88434.0,88420.0,0.40469313]
[1769473294905,0.05653102,88447.0,88420.0,0.40469313]
[1769473295110,0.01130774,88435.0,88420.0,0.37744432]
[1769473295318,0.01130761,88436.0,88421.0,0.02724881]
[1769473295665,0.01130774,88435.0,88421.0,0.02724881]
[1769473296316,0.01130761,88436.0,88421.0,0.02724881]
[1769473296540,0.01130774,88435.0,88421.0,0.02724881]
[1769473296757,0.01130774,88435.0,88422.0,0.10679478]
[1769473296927,0.01130761,88436.0,88423.0,0.02724881]
[1769473297132,0.01130774,88435.0,88423.0,0.02724881]
[1769473298946,0.01130748,88437.0,88423.0,0.02724881]
[1769473299157,0.01130774,88435.0,88423.0,0.02724881]
[1769473299367,0.01130646,88445.0,88424.0,0.09733394]
[1769473299552,0.01130697,88441.0,88430.0,0.40469313]
[1769473299699,0.01130684,88442.0,88430.0,0.02724881]
[1769473300533,0.01130697,88441.0,88430.0,0.02724881]
[1769473301107,0.0678396,88444.0,88430.0,0.02724881]
[1769473301369,0.01130646,88445.0,88430.0,0.02724881]
[1769473301722,0.01130658,88444.0,88431.0,0.02724881]
[1769473302151,0.01130646,88445.0,88431.0,0.02724881]
[1769473302569,0.01130646,88445.0,88432.0,0.02724881]
[1769473303940,0.01130633,88446.0,88432.0,0.02724881]
[1769473304707,0.01130646,88445.0,88432.0,0.02724881]
[1769473305290,0.10119807,88445.0,88432.0,0.02724881]
[1769473305685,0.08989161,88445.0,88432.0,0.02724881]
[1769473306723,0.10119807,88445.0,88432.0,0.02724881]
[1769473307871,0.13515,88453.0,88435.0,0.37744432]
[1769473308158,0.13515,88453.0,88421.0,0.17396]
[1769473308159,0.0002073,88454.0,88442.0,0.02366257]
[1769473308856,0.0002073,88454.0,88446.0,0.02479284]
[1769473308993,0.0002073,88454.0,88448.0,0.69823817]
[1769473309227,0.0002073,88454.0,88451.0,0.02479284]
[1769473309858,0.0002073,88454.0,88452.0,0.69823817]
[1769473310068,0.0002073,88454.0,88453.0,0.02479284]
[1769473310274,0.05672625,88466.0,88455.0,0.69823817]
[1769473310275,0.0002073,88466.0,88455.0,0.69823817]
[1769473310482,0.00031793,88466.0,88458.0,0.02479284]
[1769473310680,0.0116217,88466.0,88458.0,0.02479284]
[1769473310895,0.0113039,88465.0,88458.0,0.02479284]
[1769473311490,0.01130403,88464.0,88458.0,0.02479284]
[1769473311693,0.01130416,88463.0,88452.0,0.69823817]
[1769473312006,0.01130416,88463.0,88453.0,0.02479284]
[1769473313987,0.01130403,88464.0,88453.0,0.02479284]
[1769473315098,0.0113039,88465.0,88453.0,0.02479284]
[1769473315491,0.00031793,88466.0,88453.0,0.12147432]
[1769473315897,0.00031793,88466.0,88453.0,0.02479284]
[1769473316391,0.00031793,88466.0,88455.0,0.02479284]
[1769473317192,0.0116217,88466.0,88455.0,0.02479284]
[1769473317390,0.0113039,88465.0,88455.0,0.02479284]
[1769473317653,0.0116217,88466.0,88455.0,0.02479284]
[1769473318477,0.00031793,88466.0,88455.0,0.02479284]
[1769473319019,0.01130377,88466.0,88455.0,0.02479284]
[1769473319219,0.01130364,88467.0,88455.0,0.02479284]
[1769473319419,0.01130364,88467.0,88455.0,0.02490347]
[1769473319936,0.0113039,88465.0,88455.0,0.02490347]
[1769473321696,0.0113039,88465.0,88428.0,0.0002872]
[1769473321697,0.01130684,88442.0,88429.0,0.02479284]
[1769473321913,0.01130646,88445.0,88429.0,0.00046621]
[1769473321914,0.03408485,88445.0,88429.0,0.00046621]
[1769473322113,0.01130684,88442.0,88429.0,0.00046621]
[1769473322361,0.01130671,88443.0,88429.0,0.00046621]
[1769473322555,0.01130658,88444.0,88429.0,0.07284465]
[1769473322758,0.01130582,88450.0,88430.0,0.37744432]
[1769473322916,0.01130607,88448.0,88432.0,0.69823817]
[1769473323334,0.01130595,88449.0,88432.0,0.69823817]
[1769473323782,0.0113062,88447.0,88432.0,0.69823817]
[1769473323982,0.0113062,88447.0,88433.0,0.11160278]
[1769473324190,0.01130607,88448.0,88433.0,0.11160278]
[1769473326578,0.04532,88450.0,88433.0,0.11160278]
[1769473326790,0.11225636,88449.0,88434.0,0.69823817]
[1769473326997,0.11225636,88448.0,88434.0,0.69823817]
[1769473327222,0.05662582,88450.0,88434.0,0.69823817]
[1769473327455,0.1122609,88449.0,88434.0,0.69823817]
[1769473327665,0.1122609,88448.0,88434.0,0.69823817]
[1769473327839,0.04532,88450.0,88434.0,0.69823817]
[1769473328104,0.11226808,88449.0,88434.0,0.69823817]
[1769473328540,0.12357403,88449.0,88434.0,0.69823817]
[1769473328728,0.12357415,88448.0,88434.0,0.69823817]
[1769473328905,0.12357428,88447.0,88434.0,0.69823817]
[1769473329103,0.11226808,88446.0,88434.0,0.69823817]
[1769473329314,0.11226808,88445.0,88434.0,0.69823817]
[1769473329513,0.01130607,88448.0,88434.0,0.69823817]
[1769473329720,0.11229422,88447.0,88434.0,0.69823817]
[1769473329895,0.11229422,88446.0,88434.0,0.69823817]
[1769473330096,0.11229422,88445.0,88434.0,0.69823817]
[1769473330294,0.01130633,88446.0,88434.0,0.69823817]
[1769473330495,0.12360988,88445.0,88429.0,0.00046621]
[1769473330695,0.01130697,88441.0,88429.0,0.00046621]
[1769473330927,0.01130722,88439.0,88429.0,0.00046621]
[1769473331125,0.00566989,88440.0,88429.0,0.00046621]
[1769473331367,0.01697699,88440.0,88429.0,0.00046621]
[1769473331545,0.00566989,88440.0,88429.0,0.00046621]
[1769473331757,0.11227998,88439.0,88429.0,0.00046621]
[1769473331973,0.00566989,88440.0,88429.0,0.00046621]
[1769473331974,0.11227998,88438.0,88429.0,0.00046621]
[1769473332175,0.02877164,88439.0,88429.0,0.00046621]
[1769473332383,0.11228259,88438.0,88429.0,0.00046621]
[1769473332594,0.02877164,88439.0,88429.0,0.00046621]
[1769473332798,0.11228439,88438.0,88429.0,0.00046621]
[1769473332936,0.02877164,88439.0,88429.0,0.00046621]
[1769473332937,0.01130722,88439.0,88429.0,0.00046621]
[1769473333141,0.01130799,88433.0,88429.0,0.00046621]
[1769473333570,0.65030576,88431.0,88429.0,0.00046621]
[1769473333800,0.05654189,88430.0,88429.0,0.00046621]
[1769473334006,0.05654189,88430.0,88415.0,0.02479284]
[1769473334007,0.01130863,88428.0,88415.0,0.02463081]
[1769473334201,0.01130876,88427.0,88415.0,0.02470982]
[1769473334665,0.01130863,88428.0,88415.0,0.02470982]
[1769473336488,0.01130876,88427.0,88415.0,0.02470982]
[1769473336994,0.01130837,88430.0,88415.0,0.02470982]
[1769473337203,0.01130889,88426.0,88415.0,0.02470982]
[1769473337403,0.01130876,88427.0,88415.0,0.02470982]
[1769473338961,0.01130837,88430.0,88415.0,0.02470982]
[1769473339089,0.18525507,88437.0,88415.0,0.02470982]
[1769473339291,0.02922477,88510.0,88415.0,0.02470982]
[1769473339292,0.0113085,88429.0,88416.0,0.02391554]
[1769473339922,0.01130863,88428.0,88416.0,0.02391554]
[1769473340146,0.0113085,88429.0,88416.0,0.02391554]
[1769473340348,0.01130837,88430.0,88416.0,0.02391554]
[1769473340780,0.01130825,88431.0,88416.0,0.02391554]
[1769473341768,0.01130837,88430.0,88416.0,0.02391554]
[1769473344364,0.01130825,88431.0,88416.0,0.02391554]
[1769473344565,0.02235673,88436.0,88420.0,0.4026273]
[1769473344748,0.01130735,88438.0,88421.0,0.02493132]
[1769473344749,0.1122154,88435.0,88421.0,0.02493132]
[1769473344911,0.01130722,88439.0,88421.0,0.02493132]
[1769473345248,0.11221654,88438.0,88421.0,0.02493132]
[1769473345450,0.11221654,88437.0,88421.0,0.02493132]
[1769473346203,0.11221654,88437.0,88421.0,0.05802307]
[1769473346414,0.11221654,88437.0,88422.0,0.02493132]
[1769473347119,0.01130774,88435.0,88422.0,0.02493132]
[1769473347286,0.11221654,88434.0,88422.0,0.02493132]
[1769473348077,0.01130799,88433.0,88422.0,0.02493132]
[1769473348332,0.11232589,88432.0,88422.0,0.02493132]
[1769473348525,0.01130799,88433.0,88422.0,0.02493132]
[1769473348833,0.12363675,88432.0,88422.0,0.02493132]
[1769473349026,0.01130812,88432.0,88422.0,0.02493132]
[1769473349246,0.11232868,88431.0,88422.0,0.02493132]
[1769473349408,0.11232868,88430.0,88422.0,0.02493132]
[1769473349736,0.11232868,88429.0,88422.0,0.02493132]
[1769473349895,0.11232868,88428.0,88422.0,0.02493132]
[1769473350098,0.11237806,88427.0,88422.0,0.02493132]
[1769473350278,0.01130812,88432.0,88422.0,0.02493132]
[1769473350627,0.11238037,88431.0,88422.0,0.02493132]
[1769473350788,0.11238037,88430.0,88422.0,0.02493132]
[1769473350991,0.01130812,88432.0,88422.0,0.02493132]
[1769473350992,0.11238037,88429.0,88422.0,0.02493132]
[1769473351196,0.11238037,88428.0,88422.0,0.02493132]
[1769473351421,0.11238037,88427.0,88422.0,0.02493132]
[1769473351615,0.11238037,88426.0,88422.0,1e-08]
[1769473351821,0.01130799,88433.0,88422.0,1e-08]
[1769473351999,0.11244993,88432.0,88422.0,1e-08]
[1769473352218,0.11244993,88431.0,88422.0,1e-08]
[1769473352387,0.11244993,88430.0,88422.0,1e-08]
[1769473352587,0.11244993,88429.0,88422.0,1e-08]
[1769473352790,0.01130786,88434.0,88422.0,1e-08]
[1769473352791,0.11244993,88428.0,88422.0,1e-08]
[1769473353008,0.11244993,88427.0,88422.0,1e-08]
[1769473353264,0.0113071,88440.0,88422.0,0.06663791]
[1769473353442,0.01130735,88438.0,88422.0,0.06663791]
[1769473353660,0.11245969,88437.0,88422.0,0.06663791]
[1769473353889,0.11245969,88436.0,88422.0,0.06663791]
[1769473354027,0.11245969,88435.0,88423.0,0.06299207]
[1769473354247,0.11245969,88434.0,88422.0,1e-08]
[1769473354445,0.11245969,88433.0,88422.0,1e-08]
[1769473354681,0.11245969,88432.0,88422.0,1e-08]
[1769473354884,0.11245969,88431.0,88422.0,1e-08]
[1769473355067,0.11245969,88430.0,88422.0,1e-08]
[1769473355270,0.11245969,88429.0,88422.0,1e-08]
[1769473355531,0.11245969,88428.0,88422.0,1e-08]
[1769473355691,0.11245969,88427.0,88422.0,1e-08]
[1769473355895,0.26854203,88441.0,88422.0,1e-08]
[1769473355896,0.22331398,88441.0,88422.0,1e-08]
[1769473356123,0.12378099,88440.0,88422.0,1e-08]
[1769473356478,0.11247389,88439.0,88422.0,1e-08]
[1769473356693,0.11247389,88438.0,88422.0,1e-08]
[1769473356874,0.11247389,88437.0,88422.0,1e-08]
[1769473357078,0.11247389,88436.0,88418.0,0.66630002]
[1769473357314,0.11247389,88435.0,88420.0,0.02493132]
[1769473357497,0.11247389,88434.0,88420.0,0.02493132]
[1769473357802,0.11247389,88433.0,88420.0,0.02493132]
[1769473357973,0.11247389,88432.0,88420.0,0.02493132]
[1769473358199,0.11247389,88431.0,88421.0,0.02493132]
[1769473358425,0.11247389,88430.0,88421.0,0.02493132]
[1769473358669,0.11247389,88429.0,88421.0,0.02493132]
[1769473358817,0.11247389,88428.0,88421.0,0.02493132]
[1769473359186,0.11247389,88427.0,88421.0,0.02493132]
[1769473359409,0.11247389,88426.0,88421.0,0.02493132]
[1769473359621,0.11247389,88425.0,88421.0,0.02493132]
[1769473359856,0.01130761,88436.0,88421.0,0.02493132]
[1769473360066,0.11253926,88435.0,88421.0,0.02493132]
[1769473360279,0.11253926,88434.0,88421.0,0.02493132]
[1769473360491,0.11253926,88433.0,88421.0,0.02493132]
[1769473360704,0.11253926,88432.0,88421.0,0.02493132]
[1769473360909,0.11253926,88431.0,88421.0,0.02493132]
[1769473361123,0.11253926,88430.0,88421.0,0.02493132]
[1769473361335,0.11253926,88429.0,88421.0,0.02493132]
[1769473361567,0.11253926,88428.0,88421.0,0.02493132]
[1769473361784,0.11253926,88427.0,88421.0,0.02493132]
[1769473361971,0.11253926,88426.0,88421.0,0.02493132]
[1769473362123,0.01130735,88438.0,88422.0,0.04457776]
[1769473362124,0.11253926,88425.0,88422.0,0.04457776]
[1769473362344,0.11253926,88424.0,88423.0,0.02493132]
[1769473362553,0.39919402,88441.0,88415.0,7.901e-05]
[1769473362554,0.19170545,88441.0,88425.0,0.02493132]
[1769473362760,0.19170545,88441.0,88426.0,0.02493132]
[1769473363777,0.0113062,88447.0,88430.0,0.66630002]
[1769473364005,0.01130633,88446.0,88431.0,0.02493132]
[1769473364178,0.02413392,88449.0,88431.0,0.02493132]
[1769473364379,0.01130671,88443.0,88431.0,0.02493132]
[1769473364584,0.01130658,88444.0,88431.0,0.02493132]
[1769473365000,0.01130697,88441.0,88422.0,0.66630002]
[1769473365221,0.01130658,88444.0,88423.0,0.02493132]
[1769473365222,0.01130786,88434.0,88423.0,0.02493132]
[1769473365420,0.01130748,88437.0,88423.0,0.02493132]
[1769473365580,0.01130761,88436.0,88423.0,0.02493132]
[1769473365952,0.01130748,88437.0,88423.0,0.02493132]
[1769473366672,0.01130735,88438.0,88423.0,0.02493132]
[1769473367505,0.01130748,88437.0,88423.0,0.02493132]
[1769473367917,0.01130761,88436.0,88423.0,0.02493132]
[1769473368071,0.01130748,88437.0,88423.0,0.02493132]
[1769473368863,0.01130761,88436.0,88423.0,0.02493132]
[1769473369362,0.01130748,88437.0,88423.0,0.02493132]
[1769473369513,0.01130735,88438.0,88423.0,0.02493132]
[1769473370409,0.01130761,88436.0,88423.0,0.02493132]
[1769473370782,0.11019182,88439.0,88423.0,0.02493132]
[1769473371260,0.0113071,88440.0,88423.0,0.67763075]
[1769473371468,0.01130697,88441.0,88423.0,0.67763075]
[1769473371671,0.01130697,88441.0,88423.0,0.65269943]
[1769473371879,0.01130684,88442.0,88424.0,0.02289819]
[1769473372536,0.01130697,88441.0,88424.0,0.02289819]
[1769473372740,0.01130684,88442.0,88424.0,0.06242072]
[1769473373041,0.01130684,88442.0,88423.0,0.65269943]
[1769473373042,0.01130697,88441.0,88425.0,0.67559762]
[1769473373428,0.01130722,88439.0,88425.0,0.67559762]
[1769473374317,0.0900794,88437.0,88425.0,0.67559762]
[1769473374520,0.0113071,88440.0,88425.0,0.67559762]
[1769473374521,0.20267441,88436.0,88425.0,0.67559762]
[1769473374723,0.11259501,88435.0,88425.0,0.67559762]
[1769473375290,0.01130786,88434.0,88425.0,0.67559762]
[1769473375489,0.11259501,88433.0,88425.0,0.02289819]
[1769473375866,0.11259501,88432.0,88425.0,0.02289819]
[1769473376049,0.11259501,88431.0,88425.0,0.02289819]
[1769473376256,0.11259501,88430.0,88425.0,0.02289819]
[1769473376466,0.11259501,88429.0,88421.0,0.02289819]
[1769473376673,0.11259501,88428.0,88422.0,0.02289819]
[1769473376881,0.11259501,88427.0,88423.0,0.65269943]
[1769473377092,0.11259501,88426.0,88424.0,0.02289819]
[1769473377343,0.10138701,88436.0,88425.0,0.02289819]
[1769473377548,0.11259851,88435.0,88425.0,0.02289819]
[1769473377753,0.1486965,88434.0,88425.0,0.02289819]
[1769473377976,0.11259851,88433.0,88425.0,0.02289819]
[1769473378486,0.11259851,88432.0,88425.0,0.02289819]
[1769473378660,0.11259851,88431.0,88425.0,0.02289819]
[1769473378887,0.11259851,88430.0,88425.0,0.02289819]
[1769473379088,0.11259851,88429.0,88425.0,0.02289819]
[1769473379331,0.11259851,88428.0,88425.0,0.02289819]
[1769473379532,0.11259851,88427.0,88425.0,0.02289819]
[1769473379646,0.11259851,88426.0,88425.0,0.02289819]
[1769473380053,0.11259851,88426.0,88420.0,0.37769598]
[1769473380054,0.11259851,88426.0,88422.0,0.02289819]
[1769473380248,0.11259851,88425.0,88423.0,0.65269943]
[1769473380458,0.10138688,88437.0,88423.0,0.65269943]
[1769473380459,0.01130761,88436.0,88423.0,0.65269943]
[1769473380663,0.11259839,88435.0,88423.0,0.65269943]
[1769473380861,0.11259839,88434.0,88423.0,0.65269943]
[1769473381105,0.11259839,88433.0,88423.0,0.65269943]
[1769473381307,0.01130761,88436.0,88423.0,0.65269943]
[1769473381308,0.11259839,88432.0,88423.0,0.65280293]
[1769473381553,0.11259839,88431.0,88423.0,0.65280293]
[1769473381753,0.11259839,88430.0,88423.0,0.65280293]
[1769473381929,0.11259839,88429.0,88423.0,0.65280293]
[1769473382133,0.11259839,88428.0,88423.0,0.65280293]
[1769473382444,0.11259839,88427.0,88423.0,0.65280293]
[1769473382601,0.11259839,88426.0,88423.0,0.65280293]
[1769473382812,0.11259839,88425.0,88423.0,0.65280293]
[1769473383011,0.01130761,88436.0,88423.0,0.65280293]
[1769473383321,0.11259659,88435.0,88423.0,0.65280293]
[1769473383524,0.05742262,88442.0,88426.0,0.02289819]
[1769473383778,0.0290515,88446.0,88431.0,0.67559762]
[1769473383982,0.01774517,88446.0,88431.0,0.65269943]
[1769473384181,0.06783971,88444.0,88424.0,0.67559762]
[1769473384471,0.01130697,88441.0,88425.0,0.0001035]
[1769473384783,0.02394226,88436.0,88425.0,0.0001035]
[1769473384994,0.02394226,88435.0,88425.0,0.0001035]
[1769473385903,0.03525,88435.0,88425.0,0.0001035]
[1769473387469,0.02394226,88435.0,88425.0,0.0001035]
[1769473389373,0.01130748,88437.0,88425.0,0.0001035]
[1769473391301,0.00099,88441.0,88425.0,0.65280293]
[1769473391506,0.01229697,88441.0,88425.0,0.65280293]
[1769473393428,0.00099,88441.0,88425.0,0.65280293]
[1769473395036,0.01130646,88445.0,88426.0,0.02289819]
[1769473395322,0.01130658,88444.0,88429.0,0.02289819]
[1769473397235,0.01130671,88443.0,88429.0,0.02289819]
[1769473397434,0.01130658,88444.0,88429.0,0.02289819]
[1769473400018,0.01130671,88443.0,88429.0,0.02289819]
[1769473402758,0.01130658,88444.0,88429.0,0.02289819]
[1769473404014,0.01130671,88443.0,88429.0,0.02289819]
[1769473404404,0.01130658,88444.0,88429.0,0.02289819]
[1769473408402,0.03627165,88445.0,88429.0,0.02289819]
[1769473409852,0.37757919,88450.0,88429.0,0.02289819]
[1769473409853,0.02496519,88450.0,88432.0,0.02412878]
[1769473410194,0.02496519,88450.0,88430.0,0.37757919]
[1769473410195,8.5e-05,88453.0,88441.0,0.69560368]
[1769473411979,8.5e-05,88453.0,88442.0,0.02412878]
[1769473412185,8.5e-05,88453.0,88443.0,0.69560368]
[1769473412403,8.5e-05,88453.0,88444.0,0.07197325]
[1769473412587,8.5e-05,88453.0,88444.0,0.76757693]
[1769473413148,0.00055092,88453.0,88444.0,0.76757693]
[1769473413352,0.00055092,88453.0,88444.0,0.69560368]
[1769473414496,0.00055092,88453.0,88444.0,0.71973246]
[1769473414696,0.17396,88461.0,88441.0,0.69560368]
[1769473415064,0.02496519,88462.0,88445.0,0.69560368]
[1769473415460,0.02496519,88462.0,88447.0,0.69560368]
[1769473415605,0.02496519,88462.0,88448.0,0.76762352]
[1769473416588,0.0001885,88465.0,88448.0,0.76762352]
[1769473416821,0.0004,88475.0,88448.0,0.76762352]
[1769473416822,0.0004,88475.0,88457.0,0.02412878]
[1769473416938,0.0004,88475.0,88450.0,0.37757919]
[1769473416939,0.0004,88475.0,88460.0,0.69560368]
[1769473417141,0.0004,88475.0,88461.0,0.06940489]
[1769473417582,0.01170262,88475.0,88461.0,0.06940489]
[1769473417789,0.0004,88475.0,88461.0,0.06940489]
[1769473419339,0.0004,88475.0,88460.0,0.71973246]
[1769473419539,0.0678128,88479.0,88460.0,0.71973246]
[1769473419540,0.099,88479.0,88460.0,0.71973246]
[1769473419673,0.02496519,88478.0,88460.0,0.71973246]
[1769473419875,0.0113025,88476.0,88460.0,0.71973246]
[1769473420121,0.0113025,88476.0,88461.0,0.07197325]
[1769473420324,0.04419147,88479.0,88461.0,0.07197325]
[1769473420489,0.04419147,88479.0,88461.0,0.09610203]
[1769473420687,0.01130237,88477.0,88461.0,0.09579103]
[1769473421229,0.01130224,88478.0,88461.0,0.09579103]
[1769473421431,0.01130237,88477.0,88461.0,0.09579103]
[1769473422037,0.01130224,88478.0,88461.0,0.09579103]
[1769473422594,1.13369502,88501.0,88450.0,0.37757919]
[1769473422595,0.1,88490.0,88462.0,0.07913947]
[1769473422868,0.1,88490.0,88471.0,0.69560368]
[1769473422869,0.27296,88488.0,88471.0,0.69560368]
[1769473423067,0.27296,88488.0,88471.0,0.71973246]
[1769473423412,0.28426096,88488.0,88471.0,0.71957699]
[1769473423972,0.00029912,88487.0,88471.0,0.71957699]
[1769473424783,0.00029912,88487.0,88471.0,0.69544821]
[1769473425011,0.00029912,88487.0,88475.0,0.69560368]
[1769473425348,0.00029912,88487.0,88476.0,0.02412878]
[1769473426588,0.00029912,88487.0,88476.0,0.02397333]
[1769473426940,0.00029912,88487.0,88476.0,0.02381788]
[1769473427164,0.00029912,88487.0,88476.0,0.02366243]
[1769473427695,0.00029912,88487.0,88476.0,0.0822623]
[1769473427901,0.00029912,88487.0,88476.0,0.02366243]
[1769473428341,0.01160021,88487.0,88476.0,0.02366243]
[1769473428566,0.01160021,88487.0,88475.0,0.69560368]
[1769473428701,0.00029912,88487.0,88475.0,0.69560368]
[1769473431041,0.00029912,88487.0,88471.0,0.02398267]
[1769473432383,0.01160021,88487.0,88471.0,0.02398267]
[1769473432745,0.01130122,88486.0,88471.0,0.02398267]
[1769473433629,0.00029912,88487.0,88471.0,0.02398267]
[1769473434594,0.01160021,88487.0,88471.0,0.02398267]
[1769473434785,0.00029912,88487.0,88471.0,0.02398267]
[1769473435490,0.00029912,88487.0,88474.0,0.02398267]